fUSD/lending_fUSD_20240814
["ID","MTS","AMOUNT","RATE_DAILY","PERIOD"]
[334815369,1723603879587,-1756.12,0.00014246,2]
[334815370,1723603879596,-500.0,0.00014246,2]
[334815371,1723603879606,-500.0,0.00014246,2]
[334815372,1723603879616,-664.79,0.00014246,2]
[334815373,1723603879626,-822.46,0.00014246,2]
[334815374,1723603879635,-658.27,0.00014246,2]
[334815375,1723603879645,-500.0,0.00014246,2]
[334815376,1723603879654,-767.26,0.00014246,2]
[334815377,1723603879664,-1097.99,0.00014246,2]
[334815378,1723603879673,-547.57,0.00014246,2]
[334815379,1723603879682,-1115.22,0.00014246,2]
[334815380,1723603879692,-500.0,0.00014246,2]
[334815381,1723603879701,-1272.25,0.00014246,2]
[334815382,1723603879711,-500.0,0.00014246,2]
[334815383,1723603879720,-531.71,0.00014246,2]
[334815384,1723603879729,-723.33,0.00014246,2]
[334815385,1723603879739,-3348.83,0.00014246,2]
[334815386,1723603879748,-1223.52,0.00014246,2]
[334815387,1723603879757,-500.0,0.00014246,2]
[334815388,1723603879767,-2161.17,0.00014246,2]
[334815389,1723603879776,-500.0,0.00014246,2]
[334815390,1723603879785,-500.0,0.00014246,2]
[334815391,1723603879795,-6910.51,0.00014246,2]
[334815392,1723603879804,-609.36,0.00014246,2]
[334815393,1723603879813,-500.0,0.00014246,2]
[334815394,1723603879823,-880.05,0.00014246,2]
[334815395,1723603879832,-500.0,0.00014246,2]
[334815396,1723603879842,-1173.02,0.00014246,2]
[334815397,1723603879851,-500.0,0.00014246,2]
[334815398,1723603879860,-2224.37,0.00014246,2]
[334815399,1723603879870,-1181.05,0.00014246,2]
[334815400,1723603879880,-500.0,0.00014246,2]
[334815401,1723603879889,-500.0,0.00014246,2]
[334815402,1723603879899,-500.0,0.00014246,2]
[334815403,1723603879908,-725.28,0.00014246,2]
[334815404,1723603879918,-500.0,0.00014246,2]
[334815405,1723603879927,-26843.87,0.00014246,2]
[334815406,1723603879938,-500.0,0.00014246,2]
[334815407,1723603879950,-500.0,0.00014246,2]
[334815408,1723603879960,-3779.35,0.00014246,2]
[334815409,1723603879970,-500.0,0.00014246,2]
[334815410,1723603879979,-9040.84,0.00014246,2]
[334815411,1723603879988,-1046.28,0.00014246,2]
[334815412,1723603879999,-1939.79,0.00014246,2]
[334815413,1723603880008,-1333.4,0.00014246,2]
[334815414,1723603880017,-767.18,0.00014246,2]
[334815415,1723603880027,-1164.04,0.00014246,2]
[334815416,1723603880036,-500.0,0.00014246,2]
[334815417,1723603880047,-500.0,0.00014246,2]
[334815418,1723603880056,-500.0,0.00014246,2]
[334815419,1723603880066,-500.0,0.00014246,2]
[334815420,1723603880075,-500.0,0.00014246,2]
[334815421,1723603880084,-500.0,0.00014246,2]
[334815422,1723603880094,-1701.51,0.00014246,2]
[334815423,1723603880103,-1301.52,0.00014246,2]
[334815424,1723603880113,-500.0,0.00014246,2]
[334815425,1723603880124,-6185.17,0.00014246,2]
[334815426,1723603880133,-500.0,0.00014246,2]
[334815427,1723603880142,-500.0,0.00014246,2]
[334815428,1723603880151,-400.0,0.00014246,2]
[334815429,1723603880160,-3208.28,0.00014246,2]
[334815430,1723603880170,-1318.76,0.00014246,2]
[334815431,1723603880179,-800.93,0.00014246,2]
[334815432,1723603880188,-1811.7,0.00014246,2]
[334815433,1723603880199,-566.62,0.00014246,2]
[334815434,1723603880210,-1246.41,0.00014246,2]
[334815435,1723603880221,-1088.88,0.00014246,2]
[334815436,1723603880231,-3837.15,0.00014246,2]
[334815437,1723603880243,-500.0,0.00014246,2]
[334815438,1723603880253,-749.39,0.00014246,2]
[334815439,1723603880263,-505.17382544,0.00014246,2]
[334815440,1723603880272,-500.0,0.00014246,2]
[334815441,1723603880281,-3163.1,0.00014246,2]
[334815442,1723603880291,-500.0,0.00014246,2]
[334815443,1723603880300,-500.0,0.00014246,2]
[334815444,1723603880310,-3420.09,0.00014246,2]
[334815445,1723603880321,-500.0,0.00014246,2]
[334815446,1723603880330,-6114.43,0.00014246,2]
[334815447,1723603880339,-63525.08,0.00014246,2]
[334815448,1723603880350,-2037.52,0.00014246,2]
[334815449,1723603880359,-151.0,0.00014246,2]
[334815450,1723603880370,-622.28,0.00014246,2]
[334815451,1723603880380,-151.0,0.00014246,2]
[334815452,1723603880390,-978.75,0.00014246,2]
[334815453,1723603880401,-500.0,0.00014246,2]
[334815454,1723603880411,-500.0,0.00014246,2]
[334815455,1723603880421,-500.0,0.00014246,2]
[334815456,1723603880431,-287.959102,0.00014246,2]
[334815457,1723603880440,-500.0,0.00014246,2]
[334815458,1723603880450,-22338.65,0.00014246,2]
[334815459,1723603880459,-3038.65,0.00014246,2]
[334815460,1723603880469,-500.0,0.00014246,2]
[334815461,1723603880479,-518.31,0.00014246,2]
[334815462,1723603880489,-3343.58,0.00014246,2]
[334815463,1723603880499,-500.0,0.00014246,2]
[334815464,1723603880509,-2760.28,0.00014246,2]
[334815465,1723603880518,-500.0,0.00014246,2]
[334815466,1723603880528,-1040.52,0.00014246,2]
[334815467,1723603880538,-3325.87,0.00014246,2]
[334815468,1723603880548,-1000.0,0.00014246,2]
[334815469,1723603880558,-1095.39,0.00014246,2]
[334815470,1723603880568,-500.0,0.00014246,2]
[334815471,1723603880577,-773.26,0.00014246,2]
[334815472,1723603880586,-500.0,0.00014246,2]
[334815473,1723603880596,-8871.6,0.00014246,2]
[334815474,1723603880606,-500.0,0.00014246,2]
[334815475,1723603880616,-4053.29,0.00014246,2]
[334815476,1723603880625,-500.0,0.00014246,2]
[334815477,1723603880635,-500.0,0.00014246,2]
[334815478,1723603880645,-151.0,0.00014246,2]
[334815479,1723603880654,-151.0,0.00014246,2]
[334815480,1723603880664,-500.0,0.00014246,2]
[334815481,1723603880674,-2287.9,0.00014246,2]
[334815482,1723603880683,-1012.12,0.00014246,2]
[334815483,1723603880693,-500.0,0.00014246,2]
[334815484,1723603880703,-1400.49,0.00014246,2]
[334815485,1723603880712,-500.0,0.00014246,2]
[334815486,1723603880722,-574.76,0.00014246,2]
[334815487,1723603880732,-948.38,0.00014246,2]
[334815488,1723603880741,-1923.55,0.00014246,2]
[334815489,1723603880751,-500.0,0.00014246,2]
[334815490,1723603880760,-756.47,0.00014246,2]
[334815491,1723603880770,-1806.66,0.00014246,2]
[334815492,1723603880780,-1028.89,0.00014246,2]
[334815493,1723603880790,-500.0,0.00014246,2]
[334815494,1723603880799,-5711.31,0.00014246,2]
[334815495,1723603880808,-500.0,0.00014246,2]
[334815496,1723603880818,-5949.67,0.00014246,2]
[334815497,1723603880827,-500.0,0.00014246,2]
[334815498,1723603880837,-500.0,0.00014246,2]
[334815499,1723603880847,-500.0,0.00014246,2]
[334815500,1723603880856,-500.0,0.00014246,2]
[334815501,1723603880865,-1165.14,0.00014246,2]
[334815502,1723603880875,-500.0,0.00014246,2]
[334815503,1723603880884,-500.0,0.00014246,2]
[334815504,1723603880894,-500.0,0.00014246,2]
[334815505,1723603880903,-3527.81,0.00014246,2]
[334815506,1723603880913,-500.0,0.00014246,2]
[334815507,1723603880922,-500.0,0.00014246,2]
[334815508,1723603880932,-503.89,0.00014246,2]
[334815509,1723603880942,-500.0,0.00014246,2]
[334815510,1723603880954,-500.0,0.00014246,2]
[334815511,1723603880963,-657.34,0.00014246,2]
[334815512,1723603880973,-4643.86,0.00014246,2]
[334815513,1723603880982,-5304.78,0.00014246,2]
[334815514,1723603880993,-500.0,0.00014246,2]
[334815515,1723603881002,-793.68,0.00014246,2]
[334815516,1723603881011,-500.0,0.00014246,2]
[334815517,1723603881021,-500.0,0.00014246,2]
[334815518,1723603881032,-1291.51,0.00014246,2]
[334815519,1723603881042,-500.0,0.00014246,2]
[334815520,1723603881052,-3534.72,0.00014246,2]
[334815521,1723603881062,-866.3,0.00014246,2]
[334815522,1723603881071,-4085.63,0.00014246,2]
[334815523,1723603881081,-500.0,0.00014246,2]
[334815524,1723603881091,-500.0,0.00014246,2]
[334815525,1723603881100,-500.0,0.00014246,2]
[334815526,1723603881109,-1860.39,0.00014246,2]
[334815527,1723603881120,-500.0,0.00014246,2]
[334815528,1723603881129,-500.0,0.00014246,2]
[334815529,1723603881138,-500.0,0.00014246,2]
[334815530,1723603881148,-500.0,0.00014246,2]
[334815531,1723603881157,-500.0,0.00014246,2]
[334815532,1723603881167,-8721.03,0.00014246,2]
[334815533,1723603881176,-545.46,0.00014246,2]
[334815534,1723603881186,-511.5313785,0.00014246,2]
[334815535,1723603881195,-425.41829281,0.00014246,2]
[334815536,1723603881205,-500.0,0.00014246,2]
[334815537,1723603881214,-500.0,0.00014246,2]
[334815538,1723603881224,-505.23,0.00014246,2]
[334815539,1723603881233,-2674.62,0.00014246,2]
[334815540,1723603881243,-500.0,0.00014246,2]
[334815541,1723603881253,-726.24,0.00014246,2]
[334815542,1723603881263,-1060.17,0.00014246,2]
[334815543,1723603881273,-500.0,0.00014246,2]
[334815544,1723603881283,-500.0,0.00014246,2]
[334815545,1723603881293,-2300.78,0.00014246,2]
[334815546,1723603881303,-1807.13,0.00014246,2]
[334815547,1723603881313,-500.0,0.00014246,2]
[334815548,1723603881323,-1069.54,0.00014246,2]
[334815549,1723603881333,-500.0,0.00014246,2]
[334815550,1723603881345,-4235.05,0.00014246,2]
[334815551,1723603881355,-500.0,0.00014246,2]
[334815552,1723603881366,-500.0,0.00014246,2]
[334815553,1723603881376,-9482.49,0.00014246,2]
[334815554,1723603881386,-500.0,0.00014246,2]
[334815555,1723603881397,-3912.2,0.00014246,2]
[334815556,1723603881407,-1133.78,0.00014246,2]
[334815557,1723603881417,-674.92,0.00014246,2]
[334815558,1723603881427,-500.0,0.00014246,2]
[334815559,1723603881437,-195.20145255,0.00014246,2]
[334815560,1723603881447,-500.0,0.00014246,2]
[334815561,1723603881456,-500.0,0.00014246,2]
[334815562,1723603881466,-700.06,0.00014246,2]
[334815563,1723603881476,-500.0,0.00014246,2]
[334815564,1723603881487,-3352.95,0.00014246,2]
[334815565,1723603881497,-500.0,0.00014246,2]
[334815566,1723603881506,-500.0,0.00014246,2]
[334815567,1723603881517,-550.05,0.00014246,2]
[334815568,1723603881526,-5658.96,0.00014246,2]
[334815569,1723603881536,-151.0,0.00014246,2]
[334815570,1723603881546,-205.034972,0.00014246,2]
[334815571,1723603881556,-500.0,0.00014246,2]
[334815572,1723603881567,-1004.73,0.00014246,2]
[334815573,1723603881577,-500.0,0.00014246,2]
[334815574,1723603881587,-4266.51,0.00014246,2]
[334815575,1723603881597,-2152.34,0.00014246,2]
[334815576,1723603881607,-500.0,0.00014246,2]
[334815577,1723603881618,-2495.73,0.00014246,2]
[334815578,1723603881628,-500.0,0.00014246,2]
[334815579,1723603881638,-500.0,0.00014246,2]
[334815580,1723603881648,-500.0,0.00014246,2]
[334815581,1723603881658,-3010.43,0.00014246,2]
[334815582,1723603881668,-712.46,0.00014246,2]
[334815583,1723603881679,-1442.97,0.00014246,2]
[334815584,1723603881689,-500.0,0.00014246,2]
[334815585,1723603881699,-500.0,0.00014246,2]
[334815586,1723603881709,-4860.84,0.00014246,2]
[334815587,1723603881719,-936.95,0.00014246,2]
[334815588,1723603881730,-500.0,0.00014246,2]
[334815589,1723603881740,-2182.64,0.00014246,2]
[334815590,1723603881750,-545.37,0.00014246,2]
[334815591,1723603881761,-500.0,0.00014246,2]
[334815592,1723603881772,-517.19,0.00014246,2]
[334815593,1723603881782,-972.49,0.00014246,2]
[334815594,1723603881793,-500.0,0.00014246,2]
[334815595,1723603881803,-5817.55,0.00014246,2]
[334815596,1723603881813,-500.0,0.00014246,2]
[334815597,1723603881823,-16358.47,0.00014246,2]
[334815598,1723603881833,-500.0,0.00014246,2]
[334815599,1723603881844,-500.0,0.00014246,2]
[334815600,1723603881855,-1852.9,0.00014246,2]
[334815601,1723603881865,-1343.6,0.00014246,2]
[334815602,1723603881875,-500.0,0.00014246,2]
[334815603,1723603881885,-1032.88,0.00014246,2]
[334815604,1723603881895,-500.0,0.00014246,2]
[334815605,1723603881905,-500.0,0.00014246,2]
[334815606,1723603881916,-1649.15,0.00014246,2]
[334815607,1723603881926,-12284.49,0.00014246,2]
[334815608,1723603881936,-1289.77,0.00014246,2]
[334815609,1723603881947,-500.0,0.00014246,2]
[334815610,1723603881959,-500.0,0.00014246,2]
[334815611,1723603881969,-571.44,0.00014246,2]
[334815612,1723603881980,-3024.67,0.00014246,2]
[334815613,1723603881990,-1347.07,0.00014246,2]
[334815614,1723603882001,-500.0,0.00014246,2]
[334815615,1723603882012,-500.0,0.00014246,2]
[334815616,1723603882022,-500.0,0.00014246,2]
[334815617,1723603882034,-500.0,0.00014246,2]
[334815618,1723603882044,-500.0,0.00014246,2]
[334815619,1723603882055,-2375.11,0.00014246,2]
[334815620,1723603882065,-500.0,0.00014246,2]
[334815621,1723603882075,-5867.25,0.00014246,2]
[334815622,1723603882085,-1236.61,0.00014246,2]
[334815623,1723603882094,-15446.76,0.00014246,2]
[334815624,1723603882104,-500.0,0.00014246,2]
[334815625,1723603882115,-884.8328,0.00014246,2]
[334815626,1723603882125,-1109.97,0.00014246,2]
[334815627,1723603882135,-811.27,0.00014246,2]
[334815628,1723603882146,-500.0,0.00014246,2]
[334815629,1723603882158,-500.0,0.00014246,2]
[334815630,1723603882168,-500.0,0.00014246,2]
[334815631,1723603882178,-500.0,0.00014246,2]
[334815632,1723603882188,-1183.37,0.00014246,2]
[334815633,1723603882198,-500.0,0.00014246,2]
[334815634,1723603882208,-1985.01,0.00014246,2]
[334815635,1723603882218,-500.0,0.00014246,2]
[334815636,1723603882227,-500.0,0.00014246,2]
[334815637,1723603882237,-500.0,0.00014246,2]
[334815638,1723603882247,-500.0,0.00014246,2]
[334815639,1723603882256,-505.76,0.00014246,2]
[334815640,1723603882266,-3394.27,0.00014246,2]
[334815641,1723603882276,-500.0,0.00014246,2]
[334815642,1723603882286,-568.47191562,0.00014246,2]
[334815643,1723603882296,-2263.87,0.00014246,2]
[334815644,1723603882306,-500.0,0.00014246,2]
[334815645,1723603882316,-2351.17,0.00014246,2]
[334815646,1723603882327,-504.63,0.00014246,2]
[334815647,1723603882337,-2208.39,0.00014246,2]
[334815648,1723603882348,-500.0,0.00014246,2]
[334815649,1723603882359,-500.0,0.00014246,2]
[334815650,1723603882372,-500.0,0.00014246,2]
[334815651,1723603882384,-534.4,0.00014246,2]
[334815652,1723603882394,-1991.48,0.00014246,2]
[334815653,1723603882405,-304.194904,0.00014246,2]
[334815654,1723603882414,-304.194904,0.00014246,2]
[334815655,1723603882423,-1195.4,0.00014246,2]
[334815656,1723603882433,-9415.38,0.00014246,2]
[334815657,1723603882443,-500.0,0.00014246,2]
[334815658,1723603882452,-500.0,0.00014246,2]
[334815659,1723603882461,-694.34,0.00014246,2]
[334815660,1723603882471,-5022.91,0.00014246,2]
[334815661,1723603882481,-500.0,0.00014246,2]
[334815662,1723603882491,-3719.98,0.00014246,2]
[334815663,1723603882501,-304.194904,0.00014246,2]
[334815664,1723603882512,-2311.62,0.00014246,2]
[334815665,1723603882522,-304.194904,0.00014246,2]
[334815666,1723603882532,-3286.97,0.00014246,2]
[334815667,1723603882542,-500.0,0.00014246,2]
[334815668,1723603882552,-2601.74,0.00014246,2]
[334815669,1723603882563,-500.0,0.00014246,2]
[334815670,1723603882573,-925.2,0.00014246,2]
[334815671,1723603882584,-946.485974,0.00014246,2]
[334815672,1723603882594,-946.485974,0.00014246,2]
[334815673,1723603882604,-500.0,0.00014246,2]
[334815674,1723603882614,-500.0,0.00014246,2]
[334815675,1723603882625,-500.0,0.00014246,2]
[334815676,1723603882635,-4841.27,0.00014246,2]
[334815677,1723603882645,-500.0,0.00014246,2]
[334815678,1723603882655,-4804.39,0.00014246,2]
[334815679,1723603882665,-602.44,0.00014246,2]
[334815680,1723603882956,-946.485974,0.00014246,2]
[334815681,1723603882975,-946.485974,0.00014246,2]
[334815682,1723603882999,-2504.28,0.00014246,2]
[334815683,1723603883008,-30408.94,0.00014246,2]
[334815684,1723603883018,-500.0,0.00014246,2]
[334815685,1723603883027,-1009.0,0.00014246,2]
[334815686,1723603883037,-500.0,0.00014246,2]
[334815687,1723603883046,-1655.13,0.00014246,2]
[334815688,1723603883056,-311.85687608,0.00014246,2]
[334815689,1723603883065,-1618.42,0.00014246,2]
[334815690,1723603883074,-500.0,0.00014246,2]
[334815691,1723603883084,-500.0,0.00014246,2]
[334815692,1723603883093,-500.0,0.00014246,2]
[334815693,1723603883103,-500.0,0.00014246,2]
[334815694,1723603883112,-500.0,0.00014246,2]
[334815695,1723603883121,-541.79,0.00014246,2]
[334815696,1723603883131,-1939.34,0.00014246,2]
[334815697,1723603883140,-3634.01,0.00014246,2]
[334815698,1723603883149,-500.0,0.00014246,2]
[334815699,1723603883159,-500.0,0.00014246,2]
[334815700,1723603883169,-5437.68,0.00014246,2]
[334815701,1723603883178,-556.03246668,0.00014246,2]
[334815702,1723603883188,-500.0,0.00014246,2]
[334815703,1723603883197,-7831.1,0.00014246,2]
[334815704,1723603883206,-500.0,0.00014246,2]
[334815705,1723603883216,-1038.5,0.00014246,2]
[334815706,1723603883225,-500.0,0.00014246,2]
[334815707,1723603883235,-7282.92,0.00014246,2]
[334815708,1723603883245,-3021.74,0.00014246,2]
[334815709,1723603883254,-1318.54,0.00014246,2]
[334815710,1723603883264,-500.0,0.00014246,2]
[334815711,1723603883274,-887.76,0.00014246,2]
[334815712,1723603883284,-726.19,0.00014246,2]
[334815713,1723603883294,-500.0,0.00014246,2]
[334815714,1723603883303,-500.0,0.00014246,2]
[334815715,1723603883313,-500.0,0.00014246,2]
[334815716,1723603883323,-500.0,0.00014246,2]
[334815717,1723603883333,-640.09,0.00014246,2]
[334815718,1723603883343,-6303.41,0.00014246,2]
[334815719,1723603883352,-1486.12,0.00014246,2]
[334815720,1723603883362,-500.0,0.00014246,2]
[334815721,1723603883375,-1465.83,0.00014246,2]
[334815722,1723603883385,-500.0,0.00014246,2]
[334815723,1723603883395,-500.0,0.00014246,2]
[334815724,1723603883404,-500.0,0.00014246,2]
[334815725,1723603883414,-2619.71,0.00014246,2]
[334815726,1723603883424,-1599.17,0.00014246,2]
[334815727,1723603883434,-2403.52,0.00014246,2]
[334815728,1723603883444,-6526.45,0.00014246,2]
[334815729,1723603883454,-500.0,0.00014246,2]
[334815730,1723603883463,-775.24,0.00014246,2]
[334815731,1723603883473,-500.0,0.00014246,2]
[334815732,1723603883483,-617.42,0.00014246,2]
[334815733,1723603883493,-2020.58,0.00014246,2]
[334815734,1723603883503,-500.0,0.00014246,2]
[334815735,1723603883513,-564.1,0.00014246,2]
[334815736,1723603883523,-500.0,0.00014246,2]
[334815737,1723603883533,-3030.89,0.00014246,2]
[334815738,1723603883542,-500.0,0.00014246,2]
[334815739,1723603883555,-970.69,0.00014246,2]
[334815740,1723603883564,-502.00454395,0.00014246,2]
[334815741,1723603883574,-1492.57,0.00014246,2]
[334815742,1723603883584,-500.0,0.00014246,2]
[334815743,1723603883594,-500.0,0.00014246,2]
[334815744,1723603883604,-6500.63,0.00014246,2]
[334815745,1723603883615,-500.0,0.00014246,2]
[334815746,1723603883626,-8083.22,0.00014246,2]
[334815747,1723603883635,-2641.04,0.00014246,2]
[334815748,1723603883645,-748.52,0.00014246,2]
[334815749,1723603883654,-500.0,0.00014246,2]
[334815750,1723603883664,-3609.21,0.00014246,2]
[334815751,1723603883674,-500.0,0.00014246,2]
[334815752,1723603883683,-500.0,0.00014246,2]
[334815753,1723603883693,-500.0,0.00014246,2]
[334815754,1723603883703,-776.31,0.00014246,2]
[334815755,1723603883712,-851.45,0.00014246,2]
[334815756,1723603883722,-500.0,0.00014246,2]
[334815757,1723603883732,-500.0,0.00014246,2]
[334815758,1723603883742,-500.0,0.00014246,2]
[334815759,1723603883752,-500.0,0.00014246,2]
[334815760,1723603883762,-500.0,0.00014246,2]
[334815761,1723603883771,-654.47,0.00014246,2]
[334815762,1723603883781,-171.74,0.00014246,2]
[334815763,1723603883792,-500.0,0.00014246,2]
[334815764,1723603883802,-12415.65,0.00014246,2]
[334815765,1723603883812,-500.0,0.00014246,2]
[334815766,1723603883821,-500.0,0.00014246,2]
[334815767,1723603883831,-514.11,0.00014246,2]
[334815768,1723603883840,-258.9542131,0.00014246,2]
[334815769,1723603883850,-1374.17,0.00014246,2]
[334815770,1723603883860,-500.0,0.00014246,2]
[334815771,1723603883870,-500.0,0.00014246,2]
[334815772,1723603883880,-771.96,0.00014246,2]
[334815773,1723603883889,-500.0,0.00014246,2]
[334815774,1723603883899,-500.0,0.00014246,2]
[334815775,1723603883908,-500.0,0.00014246,2]
[334815776,1723603883918,-1584.87,0.00014246,2]
[334815777,1723603883927,-733.22,0.00014246,2]
[334815778,1723603883937,-500.0,0.00014246,2]
[334815779,1723603883947,-500.0,0.00014246,2]
[334815780,1723603883960,-2100.84,0.00014246,2]
[334815781,1723603883970,-6987.78,0.00014246,2]
[334815782,1723603883979,-500.0,0.00014246,2]
[334815783,1723603883989,-500.0,0.00014246,2]
[334815784,1723603884001,-502.20009475,0.00014246,2]
[334815785,1723603884010,-500.0,0.00014246,2]
[334815786,1723603884020,-500.0,0.00014246,2]
[334815787,1723603884030,-37359.85,0.00014246,2]
[334815788,1723603884041,-500.0,0.00014246,2]
[334815789,1723603884051,-500.0,0.00014246,2]
[334815790,1723603884062,-579.72037662,0.00014246,2]
[334815791,1723603884071,-528.65412166,0.00014246,2]
[334815792,1723603884081,-4485.26,0.00014246,2]
[334815793,1723603884091,-801.55,0.00014246,2]
[334815794,1723603884102,-3101.62,0.00014246,2]
[334815795,1723603884111,-3325.54,0.00014246,2]
[334815796,1723603884121,-1740.94,0.00014246,2]
[334815797,1723603884131,-500.0,0.00014246,2]
[334815798,1723603884140,-500.0,0.00014246,2]
[334815799,1723603884150,-706.4,0.00014246,2]
[334815800,1723603884160,-500.0,0.00014246,2]
[334815801,1723603884170,-500.0,0.00014246,2]
[334815802,1723603884180,-551.94,0.00014246,2]
[334815803,1723603884190,-6739.6,0.00014246,2]
[334815804,1723603884200,-500.0,0.00014246,2]
[334815805,1723603884209,-500.0,0.00014246,2]
[334815806,1723603884219,-500.0,0.00014246,2]
[334815807,1723603884229,-1984.33,0.00014246,2]
[334815808,1723603884238,-515.72,0.00014246,2]
[334815809,1723603884248,-500.0,0.00014246,2]
[334815810,1723603884257,-590.71624496,0.00014246,2]
[334815811,1723603884267,-885.1,0.00014246,2]
[334815812,1723603884277,-862.92,0.00014246,2]
[334815813,1723603884287,-1280.3,0.00014246,2]
[334815814,1723603884297,-1985.9,0.00014246,2]
[334815815,1723603884306,-500.0,0.00014246,2]
[334815816,1723603884316,-4340.54,0.00014246,2]
[334815817,1723603884326,-954.48,0.00014246,2]
[334815818,1723603884336,-7538.05,0.00014246,2]
[334815819,1723603884345,-500.0,0.00014246,2]
[334815820,1723603884355,-500.0,0.00014246,2]
[334815821,1723603884365,-2350.15,0.00014246,2]
[334815822,1723603884375,-500.0,0.00014246,2]
[334815823,1723603884384,-1823.31,0.00014246,2]
[334815824,1723603884394,-500.0,0.00014246,2]
[334815825,1723603884404,-786.92,0.00014246,2]
[334815826,1723603884413,-3114.6614692,0.00014251,2]
[334815827,1723603884423,-420.0,0.00014256,2]
[334815828,1723603884433,-724.57675552,0.00014261,2]
[334815829,1723603884443,-170.57448432,0.00014283,2]
[334815830,1723603884452,-650.79311621,0.00014283,2]
[334815831,1723603884462,-512.5101983,0.0001432,2]
[334815832,1723603884472,-600.0,0.0001433,2]
[334815833,1723603884482,-152.47241704,0.00014355,2]
[334815834,1723603884492,-200.33,0.00014376,2]
[334815835,1723603884501,-921.71726719,0.0001443,2]
[334815836,1723603884511,-629.51993245,0.0001443,2]
[334815837,1723603884521,-405.17783043,0.00014451,2]
[334815838,1723603884530,-892.92132292,0.00014451,2]
[334815839,1723603884540,-152.47241704,0.00014463,2]
[334815840,1723603884549,-454.67,0.00014466,2]
[334815841,1723603884559,-150.0,0.00014508,2]
[334815842,1723603884569,-500.0,0.00014519,2]
[334815843,1723603884579,-500.0,0.00014519,2]
[334815844,1723603884588,-500.0,0.00014519,2]
[334815845,1723603884598,-500.0,0.00014519,2]
[334815846,1723603884608,-500.0,0.00014519,2]
[334815847,1723603884618,-155.2665242,0.00014519,2]
[334815848,1723603884627,-155.0,0.00014519,2]
[334815849,1723603884636,-155.30964622,0.00014519,2]
[334815850,1723603884646,-155.11698479,0.00014519,2]
[334815851,1723603884656,-284.601118,0.00014519,2]
[334815852,1723603884665,-155.0830415,0.00014519,2]
[334815853,1723603884675,-500.0,0.0001452,2]
[334815854,1723603884685,-500.0,0.0001452,2]
[334815855,1723603884694,-1500.86,0.0001452,2]
[334815856,1723603884704,-500.0,0.0001452,2]
[334815857,1723603884713,-500.0,0.0001452,2]
[334815858,1723603884724,-500.0,0.0001452,2]
[334815859,1723603884733,-500.0,0.0001452,2]
[334815860,1723603884742,-500.0,0.0001452,2]
[334815861,1723603884752,-500.0,0.0001452,2]
[334815862,1723603884762,-501.12518096,0.0001452,2]
[334815863,1723603884772,-500.0,0.0001452,2]
[334815864,1723603884782,-500.0,0.0001452,2]
[334815865,1723603884791,-610.84297806,0.0001452,2]
[334815866,1723603884801,-500.0,0.0001452,2]
[334815867,1723603884811,-500.0,0.0001452,2]
[334815868,1723603884820,-500.0,0.0001452,2]